[Event "Titled Tuesday Blitz April 25 Early 2023"]
[White "Rios Escobar, Adan"]
[Black "Borgaonkar Akshay"]
[WhiteFideId "3403645"]
[BlackFideId "25639110"]
[WhiteElo "2502"]
[BlackElo "2063"]
[Result "0-1"]
[Round "07"]
[TimeControl "180+2"]
[Date "2023.04.25"]
[WhiteClock "0:00:09"]
[BlackClock "0:01:05"]

1. d4 {[%clk 0:03:00]}  Nf6 {[%clk 0:02:51]} 2. g3 {[%clk 0:03:00]}  g6 {[%clk 0:02:49]} 3. Bg2 {[%clk 0:03:00]}  Bg7 {[%clk 0:02:50]} 4. e4 {[%clk 0:03:00]}  d6 {[%clk 0:02:50]} 5. Ne2 {[%clk 0:03:01]}  O-O {[%clk 0:02:50]} 6. O-O {[%clk 0:03:02]}  e5 {[%clk 0:02:48]} 7. Nbc3 {[%clk 0:03:02]}  Nc6 {[%clk 0:02:48]} 8. dxe5 {[%clk 0:03:02]}  dxe5 {[%clk 0:02:48]} 9. Bg5 {[%clk 0:03:01]}  Qe8 {[%clk 0:02:36]} 10. Nb5 {[%clk 0:02:50]}  Qe7 {[%clk 0:02:32]} 11. Nec3 {[%clk 0:02:49]}  Be6 {[%clk 0:02:20]} 12. Nd5 {[%clk 0:02:46]}  Bxd5 {[%clk 0:02:20]} 13. exd5 {[%clk 0:02:45]}  Nd8 {[%clk 0:02:21]} 14. c4 {[%clk 0:02:25]}  a6 {[%clk 0:02:21]} 15. Nc3 {[%clk 0:02:10]}  h6 {[%clk 0:02:19]} 16. Be3 {[%clk 0:02:03]}  Nd7 {[%clk 0:02:16]} 17. Rb1 {[%clk 0:01:54]}  Kh7 {[%clk 0:02:15]} 18. b4 {[%clk 0:01:53]}  f5 {[%clk 0:02:15]} 19. c5 {[%clk 0:01:42]}  Qf7 {[%clk 0:02:07]} 20. c6 {[%clk 0:01:14]}  bxc6 {[%clk 0:02:05]} 21. dxc6 {[%clk 0:01:14]}  Nf6 {[%clk 0:02:05]} 22. Bc5 {[%clk 0:01:13]}  Re8 {[%clk 0:02:05]} 23. Qa4 {[%clk 0:00:45]}  Ne6 {[%clk 0:02:04]} 24. Rfd1 {[%clk 0:00:39]}  Nxc5 {[%clk 0:01:58]} 25. bxc5 {[%clk 0:00:40]}  e4 {[%clk 0:01:59]} 26. Rb7 {[%clk 0:00:37]}  Re7 {[%clk 0:01:56]} 27. Ne2 {[%clk 0:00:29]}  Ng4 {[%clk 0:01:52]} 28. Rd7 {[%clk 0:00:20]}  Rxd7 {[%clk 0:01:33]} 29. cxd7 {[%clk 0:00:21]}  Qd5 {[%clk 0:01:34]} 30. Rxc7 {[%clk 0:00:16]}  Rb8 {[%clk 0:01:25]} 31. h3 {[%clk 0:00:10]}  Rb1+ {[%clk 0:01:23]} 32. Bf1 {[%clk 0:00:10]}  Ne5 {[%clk 0:01:15]} 33. Nd4 {[%clk 0:00:09]}  Nf3+ {[%clk 0:01:08]} 34. Nxf3 {[%clk 0:00:09]}  exf3 {[%clk 0:01:09]} 35. c6 {[%clk 0:00:09]}  Qd3 {[%clk 0:01:05]} 0-1


[Site "https://www.chess.com"]

[Event "Titled Tuesday Blitz April 25 Early 2023"]
[White "Akylbek2021"]
[Black "Nikologorskiy, Konstantin"]
[BlackFideId "24111708"]
[WhiteElo "2485"]
[BlackElo "2293"]
[Result "0-1"]
[Round "07"]
[TimeControl "180+2"]
[Date "2023.04.25"]
[WhiteClock "0:00:04"]
[BlackClock "0:00:06"]

1. e4 {[%clk 0:03:00]}  c5 {[%clk 0:02:59]} 2. Nf3 {[%clk 0:03:01]}  d6 {[%clk 0:03:00]} 3. Nc3 {[%clk 0:03:01]}  a6 {[%clk 0:02:55]} 4. g3 {[%clk 0:03:00]}  g6 {[%clk 0:02:52]} 5. Bg2 {[%clk 0:02:57]}  Bg7 {[%clk 0:02:52]} 6. d4 {[%clk 0:02:58]}  cxd4 {[%clk 0:02:48]} 7. Nxd4 {[%clk 0:02:58]}  Nf6 {[%clk 0:02:47]} 8. O-O {[%clk 0:02:58]}  O-O {[%clk 0:02:47]} 9. h3 {[%clk 0:02:57]}  Nbd7 {[%clk 0:02:47]} 10. Be3 {[%clk 0:02:54]}  Qc7 {[%clk 0:02:38]} 11. Nd5 {[%clk 0:02:50]}  Nxd5 {[%clk 0:02:32]} 12. exd5 {[%clk 0:02:51]}  Nf6 {[%clk 0:02:16]} 13. Rc1 {[%clk 0:02:41]}  b5 {[%clk 0:02:14]} 14. Nc6 {[%clk 0:02:28]}  Bb7 {[%clk 0:02:14]} 15. c4 {[%clk 0:02:28]}  Bxc6 {[%clk 0:02:07]} 16. cxb5 {[%clk 0:02:26]}  axb5 {[%clk 0:02:03]} 17. Rxc6 {[%clk 0:02:22]}  Qa5 {[%clk 0:01:56]} 18. a3 {[%clk 0:02:19]}  Nd7 {[%clk 0:01:34]} 19. Re1 {[%clk 0:02:02]}  Bxb2 {[%clk 0:01:27]} 20. Bd2 {[%clk 0:01:58]}  Qxa3 {[%clk 0:01:22]} 21. Rc7 {[%clk 0:01:58]}  Ne5 {[%clk 0:01:18]} 22. Rxe7 {[%clk 0:01:52]}  Rfe8 {[%clk 0:01:12]} 23. Rxe8+ {[%clk 0:01:37]}  Rxe8 {[%clk 0:01:13]} 24. f4 {[%clk 0:01:37]}  Qxg3 {[%clk 0:01:11]} 25. fxe5 {[%clk 0:01:37]}  Bd4+ {[%clk 0:01:10]} 26. Kh1 {[%clk 0:01:29]}  Rxe5 {[%clk 0:01:08]} 27. Bb4 {[%clk 0:01:11]}  Be3 {[%clk 0:00:38]} 28. Qf3 {[%clk 0:00:44]}  Qxf3 {[%clk 0:00:20]} 29. Bxf3 {[%clk 0:00:45]}  Bf4 {[%clk 0:00:18]} 30. Ra1 {[%clk 0:00:31]}  Re3 {[%clk 0:00:13]} 31. Kg2 {[%clk 0:00:31]}  Be5 {[%clk 0:00:12]} 32. Ra8+ {[%clk 0:00:27]}  Kg7 {[%clk 0:00:12]} 33. Rb8 {[%clk 0:00:20]}  Rb3 {[%clk 0:00:12]} 34. Ba5 {[%clk 0:00:17]}  Rb2+ {[%clk 0:00:11]} 35. Kf1 {[%clk 0:00:14]}  Bd4 {[%clk 0:00:11]} 36. Be1 {[%clk 0:00:15]}  b4 {[%clk 0:00:09]} 37. Be2 {[%clk 0:00:15]}  Bc3 {[%clk 0:00:03]} 38. Bxc3+ {[%clk 0:00:07]}  bxc3 {[%clk 0:00:04]} 39. Rxb2 {[%clk 0:00:08]}  cxb2 {[%clk 0:00:04]} 40. Bd3 {[%clk 0:00:08]}  Kf6 {[%clk 0:00:05]} 41. Ke2 {[%clk 0:00:07]}  Ke5 {[%clk 0:00:06]} 42. Kd2 {[%clk 0:00:07]}  Kxd5 {[%clk 0:00:06]} 43. Kc2 {[%clk 0:00:08]}  Kd4 {[%clk 0:00:07]} 44. Bb5 {[%clk 0:00:06]}  f5 {[%clk 0:00:06]} 45. Be8 {[%clk 0:00:04]}  f4 {[%clk 0:00:05]} 46. Bc6 {[%clk 0:00:03]}  Ke3 {[%clk 0:00:06]} 47. Kxb2 {[%clk 0:00:03]}  f3 {[%clk 0:00:05]} 48. Bxf3 {[%clk 0:00:03]}  Kxf3 {[%clk 0:00:06]} 49. Kc3 {[%clk 0:00:04]}  Kg3 {[%clk 0:00:06]} 0-1


[Site "https://www.chess.com"]

[Event "Titled Tuesday Blitz April 25 Early 2023"]
[White "Khamdamova, Afruza"]
[Black "Williams, Simon K"]
[WhiteFideId "14210444"]
[BlackFideId "404454"]
[WhiteElo "2210"]
[BlackElo "2468"]
[Result "1/2-1/2"]
[Round "07"]
[TimeControl "180+2"]
[Date "2023.04.25"]
[WhiteClock "0:00:17"]
[BlackClock "0:00:06"]

1. e4 {[%clk 0:02:58]}  c5 {[%clk 0:02:55]} 2. Nf3 {[%clk 0:02:56]}  d6 {[%clk 0:02:56]} 3. Bb5+ {[%clk 0:02:56]}  Nc6 {[%clk 0:02:55]} 4. O-O {[%clk 0:02:55]}  Bd7 {[%clk 0:02:53]} 5. Nc3 {[%clk 0:02:55]}  e5 {[%clk 0:02:49]} 6. d3 {[%clk 0:02:54]}  Be7 {[%clk 0:02:40]} 7. Nd5 {[%clk 0:02:53]}  Nf6 {[%clk 0:02:38]} 8. h3 {[%clk 0:02:46]}  Nxd5 {[%clk 0:02:34]} 9. exd5 {[%clk 0:02:44]}  Nb8 {[%clk 0:02:33]} 10. a4 {[%clk 0:02:42]}  O-O {[%clk 0:02:32]} 11. Bxd7 {[%clk 0:02:35]}  Nxd7 {[%clk 0:02:31]} 12. c4 {[%clk 0:02:35]}  f5 {[%clk 0:02:24]} 13. Re1 {[%clk 0:02:32]}  a5 {[%clk 0:02:21]} 14. Bd2 {[%clk 0:02:31]}  Kh8 {[%clk 0:02:13]} 15. Qb3 {[%clk 0:02:24]}  Qc7 {[%clk 0:01:56]} 16. Bc3 {[%clk 0:02:21]}  Nb8 {[%clk 0:01:51]} 17. Nd2 {[%clk 0:02:12]}  Na6 {[%clk 0:01:49]} 18. f4 {[%clk 0:02:05]}  exf4 {[%clk 0:01:29]} 19. Re6 {[%clk 0:02:04]}  Nb4 {[%clk 0:01:13]} 20. Rae1 {[%clk 0:01:55]}  Rf7 {[%clk 0:01:14]} 21. Nf3 {[%clk 0:01:53]}  Raf8 {[%clk 0:01:10]} 22. Bxb4 {[%clk 0:01:48]}  axb4 {[%clk 0:01:09]} 23. d4 {[%clk 0:01:46]}  cxd4 {[%clk 0:01:07]} 24. Nxd4 {[%clk 0:01:43]}  Qc5 {[%clk 0:01:03]} 25. Rxe7 {[%clk 0:01:37]}  Qxd4+ {[%clk 0:01:02]} 26. Kh1 {[%clk 0:01:37]}  h6 {[%clk 0:00:50]} 27. Rxf7 {[%clk 0:01:33]}  Rxf7 {[%clk 0:00:50]} 28. Qxb4 {[%clk 0:01:33]}  f3 {[%clk 0:00:45]} 29. gxf3 {[%clk 0:01:28]}  Qf2 {[%clk 0:00:39]} 30. Qc3 {[%clk 0:01:17]}  Rf6 {[%clk 0:00:34]} 31. Qe3 {[%clk 0:00:56]}  Qxb2 {[%clk 0:00:33]} 32. Rg1 {[%clk 0:00:50]}  Rf8 {[%clk 0:00:27]} 33. Qe7 {[%clk 0:00:44]}  Rc8 {[%clk 0:00:18]} 34. c5 {[%clk 0:00:35]}  Qc3 {[%clk 0:00:15]} 35. Rg2 {[%clk 0:00:26]}  Qc1+ {[%clk 0:00:05]} 36. Rg1 {[%clk 0:00:25]}  Qc3 {[%clk 0:00:05]} 37. Kh2 {[%clk 0:00:21]}  Qe5+ {[%clk 0:00:02]} 38. Qxe5 {[%clk 0:00:21]}  dxe5 {[%clk 0:00:03]} 39. Rc1 {[%clk 0:00:20]}  Kg8 {[%clk 0:00:02]} 40. c6 {[%clk 0:00:19]}  bxc6 {[%clk 0:00:02]} 41. Rxc6 {[%clk 0:00:19]}  Ra8 {[%clk 0:00:01]} 42. d6 {[%clk 0:00:13]}  Kf7 {[%clk 0:00:01]} 43. Rc7+ {[%clk 0:00:13]}  Ke6 {[%clk 0:00:01]} 44. Rxg7 {[%clk 0:00:13]}  Kxd6 {[%clk 0:00:02]} 45. Rg6+ {[%clk 0:00:14]}  Kd5 {[%clk 0:00:02]} 46. Rxh6 {[%clk 0:00:15]}  Rxa4 {[%clk 0:00:01]} 47. Kg3 {[%clk 0:00:14]}  f4+ {[%clk 0:00:02]} 48. Kg4 {[%clk 0:00:14]}  Ra1 {[%clk 0:00:03]} 49. Rh8 {[%clk 0:00:14]}  Rf1 {[%clk 0:00:02]} 50. Kf5 {[%clk 0:00:14]}  Rxf3 {[%clk 0:00:02]} 51. Rd8+ {[%clk 0:00:15]}  Kc4 {[%clk 0:00:03]} 52. Kxe5 {[%clk 0:00:15]}  Rxh3 {[%clk 0:00:03]} 53. Kxf4 {[%clk 0:00:16]}  Rd3 {[%clk 0:00:03]} 54. Rc8+ {[%clk 0:00:15]}  Kb3 {[%clk 0:00:03]} 55. Ke4 {[%clk 0:00:15]}  Rc3 {[%clk 0:00:03]} 56. Rb8+ {[%clk 0:00:15]}  Kc2 {[%clk 0:00:04]} 57. Kd4 {[%clk 0:00:16]}  Rb3 {[%clk 0:00:04]} 58. Rc8+ {[%clk 0:00:15]}  Kd2 {[%clk 0:00:04]} 59. Rh8 {[%clk 0:00:16]}  Rb4+ {[%clk 0:00:04]} 60. Kc5 {[%clk 0:00:17]}  Rg4 {[%clk 0:00:05]} 61. Rh2+ {[%clk 0:00:16]}  Ke3 {[%clk 0:00:05]} 62. Rh3+ {[%clk 0:00:17]}  Kf4 {[%clk 0:00:05]} 63. Kd5 {[%clk 0:00:17]}  Rg3 {[%clk 0:00:05]} 64. Rxg3 {[%clk 0:00:17]}  Kxg3 {[%clk 0:00:06]} 1/2-1/2


[Site "https://www.chess.com"]

[Event "Titled Tuesday Blitz April 25 Early 2023"]
[White "Rosenberg, Evan S"]
[Black "Rustemov, Alexander"]
[WhiteFideId "2019299"]
[BlackFideId "4119002"]
[WhiteElo "2302"]
[BlackElo "2767"]
[Result "0-1"]
[Round "07"]
[TimeControl "180+2"]
[Date "2023.04.25"]
[WhiteClock "0:00:01"]
[BlackClock "0:00:17"]

1. d4 {[%clk 0:03:00]}  g6 {[%clk 0:02:58]} 2. e4 {[%clk 0:03:00]}  Bg7 {[%clk 0:02:59]} 3. Nc3 {[%clk 0:03:00]}  d6 {[%clk 0:02:58]} 4. Nf3 {[%clk 0:02:59]}  Nf6 {[%clk 0:02:57]} 5. Be2 {[%clk 0:02:59]}  O-O {[%clk 0:02:57]} 6. O-O {[%clk 0:03:00]}  Bg4 {[%clk 0:02:57]} 7. h3 {[%clk 0:02:59]}  Bxf3 {[%clk 0:02:56]} 8. Bxf3 {[%clk 0:03:00]}  Nc6 {[%clk 0:02:52]} 9. Be3 {[%clk 0:02:46]}  Nd7 {[%clk 0:02:50]} 10. d5 {[%clk 0:02:39]}  Nce5 {[%clk 0:02:47]} 11. Be2 {[%clk 0:02:40]}  Nf6 {[%clk 0:02:44]} 12. Qd2 {[%clk 0:02:34]}  c6 {[%clk 0:02:43]} 13. Rad1 {[%clk 0:02:20]}  Qc7 {[%clk 0:02:43]} 14. Rfe1 {[%clk 0:02:16]}  Rfc8 {[%clk 0:02:40]} 15. Bf1 {[%clk 0:02:11]}  Ned7 {[%clk 0:02:38]} 16. Bh6 {[%clk 0:02:03]}  Bxh6 {[%clk 0:02:32]} 17. Qxh6 {[%clk 0:02:02]}  Qb6 {[%clk 0:02:25]} 18. b3 {[%clk 0:01:43]}  Qa5 {[%clk 0:02:22]} 19. Re3 {[%clk 0:01:31]}  Nb6 {[%clk 0:02:04]} 20. dxc6 {[%clk 0:00:38]}  bxc6 {[%clk 0:01:56]} 21. a4 {[%clk 0:00:22]}  Nbd7 {[%clk 0:01:52]} 22. Bc4 {[%clk 0:00:19]}  Qc5 {[%clk 0:01:46]} 23. Kh1 {[%clk 0:00:15]}  e6 {[%clk 0:01:39]} 24. Rf3 {[%clk 0:00:13]}  d5 {[%clk 0:01:32]} 25. exd5 {[%clk 0:00:11]}  cxd5 {[%clk 0:01:32]} 26. Bb5 {[%clk 0:00:10]}  Rc7 {[%clk 0:01:13]} 27. Bxd7 {[%clk 0:00:09]}  Nxd7 {[%clk 0:01:13]} 28. Nb5 {[%clk 0:00:07]}  Qxc2 {[%clk 0:01:07]} 29. Nxc7 {[%clk 0:00:07]}  Qxd1+ {[%clk 0:01:06]} 30. Kh2 {[%clk 0:00:07]}  Rf8 {[%clk 0:01:00]} 31. Qf4 {[%clk 0:00:05]}  Qa1 {[%clk 0:00:38]} 32. Qd6 {[%clk 0:00:04]}  Qe5+ {[%clk 0:00:38]} 33. Qxe5 {[%clk 0:00:04]}  Nxe5 {[%clk 0:00:39]} 34. Rc3 {[%clk 0:00:05]}  Rd8 {[%clk 0:00:32]} 35. Nb5 {[%clk 0:00:05]}  d4 {[%clk 0:00:31]} 36. Rc5 {[%clk 0:00:03]}  Nd3 {[%clk 0:00:27]} 37. Rc7 {[%clk 0:00:04]}  a6 {[%clk 0:00:26]} 38. Na7 {[%clk 0:00:03]}  Nxf2 {[%clk 0:00:25]} 39. Nc6 {[%clk 0:00:03]}  Rd6 {[%clk 0:00:22]} 40. Ne7+ {[%clk 0:00:02]}  Kg7 {[%clk 0:00:22]} 41. Rc8 {[%clk 0:00:01]}  d3 {[%clk 0:00:20]} 42. Rg8+ {[%clk 0:00:01]}  Kf6 {[%clk 0:00:20]} 43. Nc8 {[%clk 0:00:01]}  Rd4 {[%clk 0:00:17]} 0-1


[Site "https://www.chess.com"]

[Event "Titled Tuesday Blitz April 25 Early 2023"]
[White "Samunenkov, Ihor"]
[Black "Shvedova, Alexandra"]
[WhiteFideId "14187086"]
[BlackFideId "54154782"]
[WhiteElo "2457"]
[BlackElo "2057"]
[Result "1-0"]
[Round "07"]
[TimeControl "180+2"]
[Date "2023.04.25"]
[WhiteClock "0:02:01"]
[BlackClock "0:01:04"]

1. d4 {[%clk 0:03:00]}  Nf6 {[%clk 0:03:00]} 2. c4 {[%clk 0:03:01]}  e6 {[%clk 0:03:00]} 3. Nc3 {[%clk 0:03:01]}  Bb4 {[%clk 0:03:00]} 4. e3 {[%clk 0:03:02]}  O-O {[%clk 0:02:59]} 5. Bd2 {[%clk 0:03:03]}  d5 {[%clk 0:02:55]} 6. Nf3 {[%clk 0:03:03]}  b6 {[%clk 0:02:51]} 7. cxd5 {[%clk 0:03:03]}  exd5 {[%clk 0:02:50]} 8. Rc1 {[%clk 0:03:04]}  Re8 {[%clk 0:02:44]} 9. Bd3 {[%clk 0:03:03]}  c6 {[%clk 0:02:30]} 10. O-O {[%clk 0:03:02]}  Bd6 {[%clk 0:02:30]} 11. Re1 {[%clk 0:02:57]}  Bg4 {[%clk 0:02:28]} 12. e4 {[%clk 0:02:47]}  dxe4 {[%clk 0:02:24]} 13. Nxe4 {[%clk 0:02:48]}  Nxe4 {[%clk 0:02:24]} 14. Bxe4 {[%clk 0:02:47]}  Nd7 {[%clk 0:01:56]} 15. Bxh7+ {[%clk 0:02:22]}  Kxh7 {[%clk 0:01:51]} 16. Rxe8 {[%clk 0:02:22]}  Bxf3 {[%clk 0:01:22]} 17. Rxd8 {[%clk 0:02:21]}  Bxd1 {[%clk 0:01:22]} 18. Rxa8 {[%clk 0:02:14]}  Bg4 {[%clk 0:01:20]} 19. Rxc6 {[%clk 0:02:10]}  Bb8 {[%clk 0:01:12]} 20. Rc8 {[%clk 0:02:04]}  Bd6 {[%clk 0:01:04]} 21. Rxa7 {[%clk 0:02:03]}  Be6 {[%clk 0:01:04]} 22. Rd8 {[%clk 0:02:01]} 1-0


[Site "https://www.chess.com"]

[Event "Titled Tuesday Blitz April 25 Early 2023"]
[White "Dushyant Sharma"]
[Black "Bryant, John Daniel"]
[WhiteFideId "25065130"]
[BlackFideId "2031280"]
[WhiteElo "2198"]
[BlackElo "2455"]
[Result "0-1"]
[Round "07"]
[TimeControl "180+2"]
[Date "2023.04.25"]
[WhiteClock "0:00:02"]
[BlackClock "0:00:05"]

1. e4 {[%clk 0:03:00]}  c5 {[%clk 0:02:48]} 2. Nf3 {[%clk 0:02:59]}  d6 {[%clk 0:02:48]} 3. d4 {[%clk 0:03:00]}  cxd4 {[%clk 0:02:49]} 4. Nxd4 {[%clk 0:02:58]}  Nf6 {[%clk 0:02:48]} 5. Nc3 {[%clk 0:02:58]}  a6 {[%clk 0:02:48]} 6. f4 {[%clk 0:02:58]}  g6 {[%clk 0:02:43]} 7. Nf3 {[%clk 0:02:58]}  Bg7 {[%clk 0:02:26]} 8. Bd3 {[%clk 0:02:56]}  O-O {[%clk 0:02:20]} 9. O-O {[%clk 0:02:56]}  Nbd7 {[%clk 0:01:30]} 10. a4 {[%clk 0:02:54]}  Nc5 {[%clk 0:01:04]} 11. Kh1 {[%clk 0:02:52]}  b6 {[%clk 0:00:56]} 12. Qe1 {[%clk 0:02:51]}  Bb7 {[%clk 0:00:54]} 13. Bd2 {[%clk 0:02:52]}  Rc8 {[%clk 0:00:48]} 14. b4 {[%clk 0:02:49]}  Ne6 {[%clk 0:00:37]} 15. f5 {[%clk 0:02:32]}  Nc7 {[%clk 0:00:31]} 16. Qh4 {[%clk 0:02:33]}  Nce8 {[%clk 0:00:22]} 17. Rae1 {[%clk 0:02:25]}  Nd7 {[%clk 0:00:18]} 18. Nd5 {[%clk 0:02:11]}  Nef6 {[%clk 0:00:17]} 19. c4 {[%clk 0:02:04]}  Nxd5 {[%clk 0:00:10]} 20. exd5 {[%clk 0:01:58]}  Ne5 {[%clk 0:00:08]} 21. Ng5 {[%clk 0:01:16]}  h6 {[%clk 0:00:06]} 22. fxg6 {[%clk 0:01:15]}  fxg6 {[%clk 0:00:03]} 23. Ne6 {[%clk 0:01:04]}  Qd7 {[%clk 0:00:04]} 24. Nxf8 {[%clk 0:00:22]}  Rxf8 {[%clk 0:00:05]} 25. Rxf8+ {[%clk 0:00:23]}  Bxf8 {[%clk 0:00:04]} 26. Be4 {[%clk 0:00:08]}  g5 {[%clk 0:00:02]} 27. Bxg5 {[%clk 0:00:07]}  hxg5 {[%clk 0:00:02]} 28. Qxg5+ {[%clk 0:00:08]}  Bg7 {[%clk 0:00:03]} 29. Bf5 {[%clk 0:00:08]}  Qe8 {[%clk 0:00:02]} 30. Be6+ {[%clk 0:00:08]}  Kh7 {[%clk 0:00:03]} 31. Rf1 {[%clk 0:00:06]}  Bf6 {[%clk 0:00:03]} 32. Qf5+ {[%clk 0:00:03]}  Qg6 {[%clk 0:00:02]} 33. Qh3+ {[%clk 0:00:03]}  Kg7 {[%clk 0:00:03]} 34. Bf5 {[%clk 0:00:03]}  Qh6 {[%clk 0:00:03]} 35. Qg3+ {[%clk 0:00:04]}  Qg5 {[%clk 0:00:04]} 36. Qf2 {[%clk 0:00:01]}  Nxc4 {[%clk 0:00:04]} 37. Be4 {[%clk 0:00:01]}  Ne5 {[%clk 0:00:04]} 38. g3 {[%clk 0:00:02]}  Bc8 {[%clk 0:00:04]} 39. h4 {[%clk 0:00:03]}  Qh6 {[%clk 0:00:04]} 40. Bg2 {[%clk 0:00:03]}  Bg4 {[%clk 0:00:04]} 41. Qxb6 {[%clk 0:00:03]}  Qg6 {[%clk 0:00:04]} 42. Qxa6 {[%clk 0:00:03]}  Qc2 {[%clk 0:00:05]} 43. Rg1 {[%clk 0:00:02]}  Nf3 {[%clk 0:00:05]} 0-1


[Site "https://www.chess.com"]

[Event "Titled Tuesday Blitz April 25 Early 2023"]
[White "Devaev, Alexander"]
[Black "Domingo Nunez, Ruben"]
[WhiteFideId "4169395"]
[BlackFideId "22245570"]
[WhiteElo "2204"]
[BlackElo "2404"]
[Result "1-0"]
[Round "07"]
[TimeControl "180+2"]
[Date "2023.04.25"]
[WhiteClock "0:00:07"]
[BlackClock "0:00:12"]

1. Nf3 {[%clk 0:03:00]}  g6 {[%clk 0:02:37]} 2. d4 {[%clk 0:03:00]}  Bg7 {[%clk 0:02:38]} 3. c4 {[%clk 0:03:00]}  Nf6 {[%clk 0:02:39]} 4. Nc3 {[%clk 0:03:00]}  d6 {[%clk 0:02:39]} 5. e4 {[%clk 0:03:01]}  Nbd7 {[%clk 0:02:40]} 6. h3 {[%clk 0:03:01]}  e5 {[%clk 0:02:41]} 7. d5 {[%clk 0:03:01]}  a5 {[%clk 0:02:42]} 8. Bg5 {[%clk 0:03:01]}  Nc5 {[%clk 0:02:42]} 9. Nd2 {[%clk 0:03:00]}  h6 {[%clk 0:02:43]} 10. Be3 {[%clk 0:03:01]}  O-O {[%clk 0:02:44]} 11. g4 {[%clk 0:03:01]}  Nh7 {[%clk 0:02:43]} 12. Rg1 {[%clk 0:02:56]}  f5 {[%clk 0:02:44]} 13. gxf5 {[%clk 0:02:56]}  gxf5 {[%clk 0:02:44]} 14. Bxh6 {[%clk 0:02:56]}  Rf7 {[%clk 0:02:44]} 15. Qh5 {[%clk 0:02:40]}  Qf6 {[%clk 0:02:38]} 16. Rg6 {[%clk 0:02:38]}  Qe7 {[%clk 0:02:37]} 17. exf5 {[%clk 0:02:32]}  Rxf5 {[%clk 0:02:19]} 18. Qe2 {[%clk 0:01:02]}  Rf7 {[%clk 0:02:14]} 19. Nde4 {[%clk 0:00:58]}  Nxe4 {[%clk 0:02:07]} 20. Nxe4 {[%clk 0:00:58]}  Bf5 {[%clk 0:02:07]} 21. Rxg7+ {[%clk 0:00:45]}  Rxg7 {[%clk 0:02:08]} 22. Bxg7 {[%clk 0:00:46]}  Qxg7 {[%clk 0:02:09]} 23. Ng3 {[%clk 0:00:46]}  Bg6 {[%clk 0:02:09]} 24. O-O-O {[%clk 0:00:44]}  Rf8 {[%clk 0:02:05]} 25. Bg2 {[%clk 0:00:38]}  Qh6+ {[%clk 0:01:43]} 26. Rd2 {[%clk 0:00:38]}  Rf4 {[%clk 0:01:38]} 27. b3 {[%clk 0:00:36]}  a4 {[%clk 0:01:38]} 28. Kb2 {[%clk 0:00:35]}  Nf6 {[%clk 0:01:28]} 29. Qe3 {[%clk 0:00:25]}  Kg7 {[%clk 0:01:16]} 30. Re2 {[%clk 0:00:24]}  Qh4 {[%clk 0:01:12]} 31. Re1 {[%clk 0:00:20]}  Nd7 {[%clk 0:01:05]} 32. Rg1 {[%clk 0:00:19]}  Nc5 {[%clk 0:00:53]} 33. Bf1 {[%clk 0:00:19]}  Kf6 {[%clk 0:00:52]} 34. Be2 {[%clk 0:00:19]}  Rd4 {[%clk 0:00:36]} 35. Nh5+ {[%clk 0:00:11]}  Kf7 {[%clk 0:00:21]} 36. Qh6 {[%clk 0:00:10]}  a3+ {[%clk 0:00:12]} 37. Kxa3 {[%clk 0:00:08]}  Qxf2 {[%clk 0:00:11]} 38. Qxg6+ {[%clk 0:00:07]}  Ke7 {[%clk 0:00:12]} 39. Qg7+ {[%clk 0:00:07]}  Kd8 {[%clk 0:00:12]} 40. Qh8+ {[%clk 0:00:06]}  Ke7 {[%clk 0:00:12]} 41. Rg7+ {[%clk 0:00:07]} 1-0


[Site "https://www.chess.com"]

[Event "Titled Tuesday Blitz April 25 Early 2023"]
[White "Kozin, Yuri"]
[Black "Begunov, Konstantin"]
[WhiteFideId "4129920"]
[BlackFideId "4118510"]
[WhiteElo "2607"]
[BlackElo "2087"]
[Result "1-0"]
[Round "07"]
[TimeControl "180+2"]
[Date "2023.04.25"]
[WhiteClock "0:01:09"]
[BlackClock "0:00:15"]

1. e4 {[%clk 0:03:00]}  c5 {[%clk 0:02:57]} 2. Nf3 {[%clk 0:02:59]}  d6 {[%clk 0:02:57]} 3. d4 {[%clk 0:03:00]}  cxd4 {[%clk 0:02:57]} 4. Nxd4 {[%clk 0:03:01]}  Nf6 {[%clk 0:02:57]} 5. Nc3 {[%clk 0:03:01]}  a6 {[%clk 0:02:57]} 6. Be3 {[%clk 0:03:00]}  Ng4 {[%clk 0:02:57]} 7. Bc1 {[%clk 0:03:00]}  Nc6 {[%clk 0:02:57]} 8. h3 {[%clk 0:02:45]}  Qb6 {[%clk 0:02:54]} 9. hxg4 {[%clk 0:02:39]}  Qxd4 {[%clk 0:02:53]} 10. Bd3 {[%clk 0:02:39]}  e6 {[%clk 0:02:33]} 11. a3 {[%clk 0:02:34]}  Qb6 {[%clk 0:02:30]} 12. b3 {[%clk 0:02:23]}  Ne5 {[%clk 0:02:18]} 13. Bb2 {[%clk 0:02:19]}  Nxd3+ {[%clk 0:02:07]} 14. Qxd3 {[%clk 0:02:19]}  Qc5 {[%clk 0:01:57]} 15. O-O-O {[%clk 0:02:06]}  Qxf2 {[%clk 0:01:46]} 16. Rdf1 {[%clk 0:02:06]}  Qc5 {[%clk 0:01:45]} 17. Na4 {[%clk 0:01:46]}  Qg5+ {[%clk 0:01:35]} 18. Kb1 {[%clk 0:01:46]}  Be7 {[%clk 0:01:21]} 19. e5 {[%clk 0:01:32]}  dxe5 {[%clk 0:01:12]} 20. Rxh7 {[%clk 0:01:16]}  Rxh7 {[%clk 0:00:39]} 21. Qxh7 {[%clk 0:01:17]}  b5 {[%clk 0:00:37]} 22. Qg8+ {[%clk 0:01:11]}  Kd7 {[%clk 0:00:15]} 23. Nb6+ {[%clk 0:01:09]} 1-0


[Site "https://www.chess.com"]